[Event "Titled Tuesday Blitz January 25 2022"]
[White "Nestorovic, Nikola"]
[Black "Ozates, Tuna"]
[WhiteFideId "934526"]
[BlackFideId "6354521"]
[WhiteElo "2411"]
[BlackElo "1872"]
[Result "0-1"]
[Round "05"]
[TimeControl "180+1"]
[Date "2022.01.26"]
[WhiteClock "0:00:04"]
[BlackClock "0:01:06"]

1. c4 {[%clk 0:03:00]}  Nf6 {[%clk 0:02:55]} 2. Nc3 {[%clk 0:02:51]}  g6 {[%clk 0:02:55]} 3. d4 {[%clk 0:02:48]}  Bg7 {[%clk 0:02:55]} 4. Bg5 {[%clk 0:02:49]}  O-O {[%clk 0:02:56]} 5. Nf3 {[%clk 0:02:49]}  d6 {[%clk 0:02:55]} 6. e3 {[%clk 0:02:48]}  c6 {[%clk 0:02:56]} 7. Be2 {[%clk 0:02:47]}  Qa5 {[%clk 0:02:57]} 8. O-O {[%clk 0:02:46]}  Nbd7 {[%clk 0:02:54]} 9. a3 {[%clk 0:02:39]}  a6 {[%clk 0:02:51]} 10. b4 {[%clk 0:02:39]}  Qc7 {[%clk 0:02:51]} 11. Rc1 {[%clk 0:02:38]}  e5 {[%clk 0:02:48]} 12. h3 {[%clk 0:02:35]}  h6 {[%clk 0:02:40]} 13. Bh4 {[%clk 0:02:34]}  Re8 {[%clk 0:02:32]} 14. c5 {[%clk 0:02:28]}  exd4 {[%clk 0:02:27]} 15. exd4 {[%clk 0:02:28]}  d5 {[%clk 0:02:24]} 16. Bg3 {[%clk 0:02:25]}  Qd8 {[%clk 0:02:23]} 17. Ne5 {[%clk 0:02:25]}  Nxe5 {[%clk 0:02:23]} 18. Bxe5 {[%clk 0:02:25]}  Ne4 {[%clk 0:02:11]} 19. Nxe4 {[%clk 0:02:06]}  dxe4 {[%clk 0:02:11]} 20. Bxg7 {[%clk 0:02:02]}  Kxg7 {[%clk 0:02:11]} 21. Bc4 {[%clk 0:01:42]}  Be6 {[%clk 0:02:06]} 22. Bxe6 {[%clk 0:01:36]}  Rxe6 {[%clk 0:02:05]} 23. d5 {[%clk 0:01:09]}  Qxd5 {[%clk 0:02:02]} 24. Qxd5 {[%clk 0:01:09]}  cxd5 {[%clk 0:02:03]} 25. Rfd1 {[%clk 0:01:09]}  Rd8 {[%clk 0:01:58]} 26. Rd4 {[%clk 0:00:51]}  Kf6 {[%clk 0:01:58]} 27. f4 {[%clk 0:00:49]}  exf3 {[%clk 0:01:56]} 28. gxf3 {[%clk 0:00:50]}  Re3 {[%clk 0:01:47]} 29. c6 {[%clk 0:00:50]}  bxc6 {[%clk 0:01:46]} 30. Rxc6+ {[%clk 0:00:50]}  Ke5 {[%clk 0:01:47]} 31. Rd2 {[%clk 0:00:46]}  Rxa3 {[%clk 0:01:40]} 32. Kf2 {[%clk 0:00:46]}  Rb3 {[%clk 0:01:27]} 33. Rb6 {[%clk 0:00:39]}  d4 {[%clk 0:01:21]} 34. Ra2 {[%clk 0:00:34]}  d3 {[%clk 0:01:18]} 35. Rd2 {[%clk 0:00:32]}  Kd4 {[%clk 0:01:14]} 36. Rxa6 {[%clk 0:00:30]}  Kc3 {[%clk 0:01:14]} 37. Rd1 {[%clk 0:00:23]}  Kc2 {[%clk 0:01:12]} 38. Raa1 {[%clk 0:00:04]}  d2 {[%clk 0:01:12]} 39. h4 {[%clk 0:00:03]}  Rxb4 {[%clk 0:01:11]} 40. h5 {[%clk 0:00:03]}  gxh5 {[%clk 0:01:08]} 41. Ke2 {[%clk 0:00:04]}  Re8+ {[%clk 0:01:06]} 42. Kf2 {[%clk 0:00:04]}  Rd4 {[%clk 0:01:06]} 0-1


[Site "https://www.chess.com"]

[Event "Titled Tuesday Blitz January 25 2022"]
[White "Ovetchkin, Roman"]
[Black "Sarana, Alexey"]
[WhiteFideId "4119991"]
[BlackFideId "24133795"]
[WhiteElo "2409"]
[BlackElo "2665"]
[Result "0-1"]
[Round "05"]
[TimeControl "180+1"]
[Date "2022.01.26"]
[WhiteClock "0:00:18"]
[BlackClock "0:01:13"]

1. d4 {[%clk 0:03:00]}  Nf6 {[%clk 0:02:56]} 2. c4 {[%clk 0:03:00]}  e6 {[%clk 0:02:35]} 3. g3 {[%clk 0:02:59]}  Bb4+ {[%clk 0:02:33]} 4. Bd2 {[%clk 0:02:58]}  Be7 {[%clk 0:02:32]} 5. Bg2 {[%clk 0:02:57]}  d5 {[%clk 0:02:32]} 6. Nf3 {[%clk 0:02:57]}  O-O {[%clk 0:02:33]} 7. O-O {[%clk 0:02:57]}  c6 {[%clk 0:02:32]} 8. Qc2 {[%clk 0:02:49]}  Nbd7 {[%clk 0:02:32]} 9. Rd1 {[%clk 0:02:47]}  b6 {[%clk 0:02:32]} 10. Bf4 {[%clk 0:02:46]}  Ba6 {[%clk 0:02:33]} 11. Nbd2 {[%clk 0:02:46]}  Nh5 {[%clk 0:02:30]} 12. Be3 {[%clk 0:02:20]}  f5 {[%clk 0:02:27]} 13. cxd5 {[%clk 0:02:02]}  cxd5 {[%clk 0:02:24]} 14. Qc6 {[%clk 0:02:02]}  Kf7 {[%clk 0:02:05]} 15. Re1 {[%clk 0:01:44]}  h6 {[%clk 0:02:02]} 16. Qa4 {[%clk 0:01:38]}  Bb7 {[%clk 0:01:57]} 17. Ne5+ {[%clk 0:01:28]}  Nxe5 {[%clk 0:01:54]} 18. dxe5 {[%clk 0:01:29]}  g5 {[%clk 0:01:54]} 19. Bd4 {[%clk 0:01:19]}  Ng7 {[%clk 0:01:46]} 20. h3 {[%clk 0:01:15]}  Qe8 {[%clk 0:01:43]} 21. Qb3 {[%clk 0:01:14]}  Qd7 {[%clk 0:01:42]} 22. g4 {[%clk 0:01:12]}  h5 {[%clk 0:01:38]} 23. Rad1 {[%clk 0:01:03]}  Rac8 {[%clk 0:01:33]} 24. Bf3 {[%clk 0:00:45]}  hxg4 {[%clk 0:01:29]} 25. hxg4 {[%clk 0:00:45]}  Rh8 {[%clk 0:01:29]} 26. Kg2 {[%clk 0:00:44]}  Rh4 {[%clk 0:01:29]} 27. Kg3 {[%clk 0:00:27]}  Rch8 {[%clk 0:01:26]} 28. Rh1 {[%clk 0:00:27]}  fxg4 {[%clk 0:01:14]} 29. Rxh4 {[%clk 0:00:18]}  Nf5+ {[%clk 0:01:13]} 0-1


[Site "https://www.chess.com"]

[Event "Titled Tuesday Blitz January 25 2022"]
[White "Padmini, Rout"]
[Black "Donchenko, Alexander"]
[WhiteFideId "5029295"]
[BlackFideId "24603295"]
[WhiteElo "2181"]
[BlackElo "2539"]
[Result "0-1"]
[Round "05"]
[TimeControl "180+1"]
[Date "2022.01.26"]
[WhiteClock "0:00:01"]
[BlackClock "0:00:37"]

1. Nf3 {[%clk 0:02:50]}  Nf6 {[%clk 0:02:59]} 2. g3 {[%clk 0:02:50]}  d5 {[%clk 0:02:59]} 3. Bg2 {[%clk 0:02:50]}  e6 {[%clk 0:03:00]} 4. O-O {[%clk 0:02:50]}  Be7 {[%clk 0:03:01]} 5. d3 {[%clk 0:02:41]}  O-O {[%clk 0:03:01]} 6. Nbd2 {[%clk 0:02:41]}  c5 {[%clk 0:03:01]} 7. e4 {[%clk 0:02:42]}  Nc6 {[%clk 0:03:02]} 8. Qe2 {[%clk 0:02:42]}  b5 {[%clk 0:03:01]} 9. Re1 {[%clk 0:02:40]}  Bb7 {[%clk 0:03:00]} 10. e5 {[%clk 0:02:40]}  Nd7 {[%clk 0:03:00]} 11. Nf1 {[%clk 0:02:38]}  a5 {[%clk 0:02:59]} 12. h4 {[%clk 0:02:36]}  a4 {[%clk 0:02:58]} 13. h5 {[%clk 0:02:29]}  a3 {[%clk 0:02:57]} 14. b3 {[%clk 0:02:27]}  h6 {[%clk 0:02:55]} 15. Bf4 {[%clk 0:02:26]}  Qa5 {[%clk 0:02:50]} 16. N1h2 {[%clk 0:02:19]}  Rfc8 {[%clk 0:02:50]} 17. Ng4 {[%clk 0:02:18]}  Bf8 {[%clk 0:02:49]} 18. Bd2 {[%clk 0:02:02]}  Qb6 {[%clk 0:02:46]} 19. c3 {[%clk 0:01:55]}  d4 {[%clk 0:02:34]} 20. c4 {[%clk 0:01:54]}  Nb4 {[%clk 0:02:32]} 21. Bxb4 {[%clk 0:01:47]}  cxb4 {[%clk 0:02:33]} 22. Nd2 {[%clk 0:01:47]}  Bxg2 {[%clk 0:02:32]} 23. Kxg2 {[%clk 0:01:48]}  Rc5 {[%clk 0:02:25]} 24. f4 {[%clk 0:01:42]}  Rac8 {[%clk 0:02:23]} 25. Qf3 {[%clk 0:01:34]}  Be7 {[%clk 0:02:16]} 26. Nf2 {[%clk 0:01:24]}  R5c7 {[%clk 0:02:07]} 27. Nfe4 {[%clk 0:01:20]}  Kh8 {[%clk 0:01:39]} 28. Re2 {[%clk 0:01:19]}  f6 {[%clk 0:01:35]} 29. exf6 {[%clk 0:01:15]}  gxf6 {[%clk 0:01:36]} 30. cxb5 {[%clk 0:01:09]}  Rc2 {[%clk 0:01:31]} 31. Nc4 {[%clk 0:01:09]}  Rxe2+ {[%clk 0:01:31]} 32. Qxe2 {[%clk 0:01:09]}  Qxb5 {[%clk 0:01:32]} 33. Ned2 {[%clk 0:00:13]}  Qd5+ {[%clk 0:01:29]} 34. Kf2 {[%clk 0:00:10]}  Rg8 {[%clk 0:01:25]} 35. Re1 {[%clk 0:00:10]}  e5 {[%clk 0:01:24]} 36. fxe5 {[%clk 0:00:09]}  fxe5 {[%clk 0:01:24]} 37. Nxe5 {[%clk 0:00:10]}  Bg5 {[%clk 0:00:55]} 38. Ng6+ {[%clk 0:00:09]}  Kh7 {[%clk 0:00:55]} 39. Nf3 {[%clk 0:00:08]}  Be3+ {[%clk 0:00:54]} 40. Kf1 {[%clk 0:00:07]}  Qxh5 {[%clk 0:00:54]} 41. Nfh4 {[%clk 0:00:05]}  Qxe2+ {[%clk 0:00:53]} 42. Rxe2 {[%clk 0:00:06]}  Rxg6 {[%clk 0:00:53]} 43. Nxg6 {[%clk 0:00:07]}  Kxg6 {[%clk 0:00:54]} 44. Rc2 {[%clk 0:00:07]}  Ne5 {[%clk 0:00:54]} 45. Ke2 {[%clk 0:00:07]}  Bg5 {[%clk 0:00:43]} 46. Rc5 {[%clk 0:00:07]}  Kf5 {[%clk 0:00:42]} 47. Rb5 {[%clk 0:00:06]}  Be7 {[%clk 0:00:42]} 48. Rd5 {[%clk 0:00:06]}  Ke6 {[%clk 0:00:40]} 49. Rxd4 {[%clk 0:00:06]}  Nc6 {[%clk 0:00:39]} 50. Re4+ {[%clk 0:00:06]}  Kd5 {[%clk 0:00:39]} 51. Rg4 {[%clk 0:00:06]}  Nd4+ {[%clk 0:00:39]} 52. Kd2 {[%clk 0:00:06]}  Nxb3+ {[%clk 0:00:37]} 53. Ke3 {[%clk 0:00:04]}  Bg5+ {[%clk 0:00:36]} 54. Kf3 {[%clk 0:00:02]}  Nd4+ {[%clk 0:00:36]} 55. Kg2 {[%clk 0:00:01]}  b3 {[%clk 0:00:37]} 0-1


[Site "https://www.chess.com"]

[Event "Titled Tuesday Blitz January 25 2022"]
[White "Pakleza, Zbigniew"]
[Black "Gerasimenyuk, Mikhail"]
[WhiteFideId "1119290"]
[BlackFideId "14111845"]
[WhiteElo "2467"]
[BlackElo "2181"]
[Result "1-0"]
[Round "05"]
[TimeControl "180+1"]
[Date "2022.01.26"]
[WhiteClock "0:00:06"]
[BlackClock "0:00:14"]

1. d4 {[%clk 0:03:00]}  d6 {[%clk 0:02:57]} 2. Nf3 {[%clk 0:03:00]}  c6 {[%clk 0:02:58]} 3. Bf4 {[%clk 0:03:00]}  Bg4 {[%clk 0:02:55]} 4. Nbd2 {[%clk 0:02:59]}  Nd7 {[%clk 0:02:54]} 5. h3 {[%clk 0:03:00]}  Bxf3 {[%clk 0:02:53]} 6. Nxf3 {[%clk 0:03:00]}  e5 {[%clk 0:02:46]} 7. Bh2 {[%clk 0:02:43]}  e4 {[%clk 0:02:44]} 8. Nd2 {[%clk 0:02:41]}  Ngf6 {[%clk 0:02:34]} 9. e3 {[%clk 0:02:40]}  d5 {[%clk 0:02:34]} 10. Be2 {[%clk 0:02:37]}  Bb4 {[%clk 0:02:31]} 11. O-O {[%clk 0:02:26]}  O-O {[%clk 0:02:31]} 12. c4 {[%clk 0:02:25]}  Qe7 {[%clk 0:02:28]} 13. c5 {[%clk 0:02:13]}  Qe6 {[%clk 0:02:20]} 14. Nb3 {[%clk 0:02:00]}  a5 {[%clk 0:02:18]} 15. a3 {[%clk 0:01:58]}  a4 {[%clk 0:02:17]} 16. axb4 {[%clk 0:01:57]}  axb3 {[%clk 0:02:17]} 17. Qxb3 {[%clk 0:01:58]}  b5 {[%clk 0:02:16]} 18. cxb6 {[%clk 0:01:51]}  Nxb6 {[%clk 0:02:16]} 19. b5 {[%clk 0:01:50]}  cxb5 {[%clk 0:02:14]} 20. Qxb5 {[%clk 0:01:46]}  Nfd7 {[%clk 0:02:11]} 21. Rfc1 {[%clk 0:01:38]}  g6 {[%clk 0:01:58]} 22. Bf4 {[%clk 0:01:28]}  Rxa1 {[%clk 0:01:56]} 23. Rxa1 {[%clk 0:01:28]}  Rc8 {[%clk 0:01:55]} 24. b4 {[%clk 0:01:16]}  Nc4 {[%clk 0:01:52]} 25. Ra6 {[%clk 0:01:06]}  Ndb6 {[%clk 0:01:20]} 26. Bg4 {[%clk 0:00:47]}  f5 {[%clk 0:01:18]} 27. Be2 {[%clk 0:00:47]}  Qc6 {[%clk 0:00:44]} 28. Qxc6 {[%clk 0:00:36]}  Rxc6 {[%clk 0:00:43]} 29. b5 {[%clk 0:00:32]}  Rc8 {[%clk 0:00:40]} 30. g4 {[%clk 0:00:29]}  Kf7 {[%clk 0:00:39]} 31. Kg2 {[%clk 0:00:28]}  Ke7 {[%clk 0:00:33]} 32. Ra7+ {[%clk 0:00:27]}  Ke6 {[%clk 0:00:32]} 33. Rxh7 {[%clk 0:00:26]}  Nd7 {[%clk 0:00:28]} 34. Rh6 {[%clk 0:00:24]}  Kf7 {[%clk 0:00:26]} 35. gxf5 {[%clk 0:00:21]}  gxf5 {[%clk 0:00:25]} 36. Bh5+ {[%clk 0:00:21]}  Kg7 {[%clk 0:00:24]} 37. Rg6+ {[%clk 0:00:21]}  Kh7 {[%clk 0:00:25]} 38. Rc6 {[%clk 0:00:22]}  Rg8+ {[%clk 0:00:24]} 39. Kf1 {[%clk 0:00:21]}  Ndb6 {[%clk 0:00:23]} 40. Bc7 {[%clk 0:00:19]}  Nd2+ {[%clk 0:00:22]} 41. Ke2 {[%clk 0:00:18]}  Nbc4 {[%clk 0:00:23]} 42. b6 {[%clk 0:00:18]}  Rg1 {[%clk 0:00:22]} 43. b7 {[%clk 0:00:16]}  Nb1 {[%clk 0:00:21]} 44. Rxc4 {[%clk 0:00:12]}  dxc4 {[%clk 0:00:21]} 45. b8=Q {[%clk 0:00:11]}  Nc3+ {[%clk 0:00:20]} 46. Kd2 {[%clk 0:00:10]}  Nd5 {[%clk 0:00:17]} 47. Bh2 {[%clk 0:00:08]}  c3+ {[%clk 0:00:18]} 48. Kc2 {[%clk 0:00:07]}  Rf1 {[%clk 0:00:17]} 49. Bg3 {[%clk 0:00:06]}  Ra1 {[%clk 0:00:15]} 50. Qb7+ {[%clk 0:00:05]}  Kh6 {[%clk 0:00:15]} 51. Qxd5 {[%clk 0:00:06]}  Ra2+ {[%clk 0:00:16]} 52. Qxa2 {[%clk 0:00:06]}  f4 {[%clk 0:00:16]} 53. Bxf4+ {[%clk 0:00:06]}  Kxh5 {[%clk 0:00:14]} 54. Qa5+ {[%clk 0:00:06]} 1-0


[Site "https://www.chess.com"]

[Event "Titled Tuesday Blitz January 25 2022"]
[White "Panesar Vedant"]
[Black "Silich, Yahor"]
[WhiteFideId "35033018"]
[BlackFideId "13513656"]
[WhiteElo "1971"]
[BlackElo "2101"]
[Result "1-0"]
[Round "05"]
[TimeControl "180+1"]
[Date "2022.01.26"]
[WhiteClock "0:00:16"]
[BlackClock "0:00:01"]

1. d4 {[%clk 0:02:59]}  Nf6 {[%clk 0:02:59]} 2. c4 {[%clk 0:02:59]}  g6 {[%clk 0:03:00]} 3. Nc3 {[%clk 0:02:58]}  Bg7 {[%clk 0:03:01]} 4. e4 {[%clk 0:02:58]}  d6 {[%clk 0:03:01]} 5. Be2 {[%clk 0:02:58]}  O-O {[%clk 0:03:02]} 6. Nf3 {[%clk 0:02:59]}  Nbd7 {[%clk 0:03:00]} 7. O-O {[%clk 0:02:59]}  e5 {[%clk 0:03:01]} 8. Be3 {[%clk 0:03:00]}  Re8 {[%clk 0:03:00]} 9. Qc2 {[%clk 0:02:58]}  exd4 {[%clk 0:03:01]} 10. Nxd4 {[%clk 0:02:58]}  c6 {[%clk 0:03:01]} 11. Rad1 {[%clk 0:02:55]}  Qe7 {[%clk 0:03:00]} 12. f3 {[%clk 0:02:53]}  a6 {[%clk 0:03:01]} 13. Bf2 {[%clk 0:02:23]}  Ne5 {[%clk 0:02:57]} 14. a4 {[%clk 0:02:19]}  a5 {[%clk 0:02:51]} 15. Rfe1 {[%clk 0:02:18]}  Bh6 {[%clk 0:02:23]} 16. Bf1 {[%clk 0:02:11]}  Nfd7 {[%clk 0:02:23]} 17. Nb3 {[%clk 0:02:01]}  b6 {[%clk 0:01:46]} 18. Nd4 {[%clk 0:01:40]}  Nc5 {[%clk 0:01:39]} 19. Bg3 {[%clk 0:01:18]}  Bb7 {[%clk 0:01:24]} 20. Kh1 {[%clk 0:01:16]}  Rad8 {[%clk 0:01:23]} 21. Qf2 {[%clk 0:01:09]}  Bg7 {[%clk 0:01:15]} 22. Bh4 {[%clk 0:00:57]}  Bf6 {[%clk 0:01:15]} 23. Bxf6 {[%clk 0:00:57]}  Qxf6 {[%clk 0:01:16]} 24. Rd2 {[%clk 0:00:58]}  h5 {[%clk 0:00:47]} 25. Red1 {[%clk 0:00:56]}  Kg7 {[%clk 0:00:46]} 26. Qg3 {[%clk 0:00:48]}  h4 {[%clk 0:00:45]} 27. Qf2 {[%clk 0:00:46]}  Rd7 {[%clk 0:00:40]} 28. f4 {[%clk 0:00:35]}  Ng4 {[%clk 0:00:36]} 29. Qf3 {[%clk 0:00:35]}  Nh6 {[%clk 0:00:33]} 30. Nc2 {[%clk 0:00:31]}  Bc8 {[%clk 0:00:28]} 31. Nd4 {[%clk 0:00:29]}  Bb7 {[%clk 0:00:22]} 32. Nc2 {[%clk 0:00:29]}  Bc8 {[%clk 0:00:14]} 33. Re1 {[%clk 0:00:30]}  Ng8 {[%clk 0:00:14]} 34. Qf2 {[%clk 0:00:25]}  Bb7 {[%clk 0:00:11]} 35. Bd3 {[%clk 0:00:18]}  Rde7 {[%clk 0:00:10]} 36. Qf3 {[%clk 0:00:15]}  Nh6 {[%clk 0:00:10]} 37. Bf1 {[%clk 0:00:14]}  Ne6 {[%clk 0:00:08]} 38. Qf2 {[%clk 0:00:12]}  Nxf4 {[%clk 0:00:07]} 39. Qxb6 {[%clk 0:00:12]}  Ng4 {[%clk 0:00:06]} 40. Qd4 {[%clk 0:00:10]}  Ne5 {[%clk 0:00:05]} 41. Qg1 {[%clk 0:00:10]}  h3 {[%clk 0:00:04]} 42. g3 {[%clk 0:00:09]}  Nf3 {[%clk 0:00:04]} 43. Qf2 {[%clk 0:00:09]}  Nxd2 {[%clk 0:00:05]} 44. Qxd2 {[%clk 0:00:09]}  Ne6 {[%clk 0:00:04]} 45. Bxh3 {[%clk 0:00:09]}  Nc5 {[%clk 0:00:03]} 46. Rf1 {[%clk 0:00:09]}  Qe5 {[%clk 0:00:02]} 47. Bg2 {[%clk 0:00:10]}  Ba6 {[%clk 0:00:02]} 48. Ne3 {[%clk 0:00:09]}  Rb8 {[%clk 0:00:02]} 49. Qf2 {[%clk 0:00:09]}  Qe6 {[%clk 0:00:01]} 50. Ng4 {[%clk 0:00:09]}  Kg8 {[%clk 0:00:02]} 51. Nf6+ {[%clk 0:00:09]}  Kg7 {[%clk 0:00:03]} 52. h4 {[%clk 0:00:09]}  Bxc4 {[%clk 0:00:03]} 53. Kh2 {[%clk 0:00:09]}  Rh8 {[%clk 0:00:03]} 54. Bh3 {[%clk 0:00:09]}  Nd3 {[%clk 0:00:03]} 55. Bxe6 {[%clk 0:00:09]}  Nxf2 {[%clk 0:00:04]} 56. Bxc4 {[%clk 0:00:09]}  Kxf6 {[%clk 0:00:04]} 57. Rxf2+ {[%clk 0:00:09]}  Kg7 {[%clk 0:00:04]} 58. Rd2 {[%clk 0:00:09]}  Rd8 {[%clk 0:00:03]} 59. Kg2 {[%clk 0:00:10]}  Re5 {[%clk 0:00:03]} 60. Kf3 {[%clk 0:00:10]}  Rc5 {[%clk 0:00:03]} 61. b3 {[%clk 0:00:11]}  d5 {[%clk 0:00:03]} 62. exd5 {[%clk 0:00:12]}  cxd5 {[%clk 0:00:04]} 63. Nxd5 {[%clk 0:00:12]}  Re8 {[%clk 0:00:02]} 64. Re2 {[%clk 0:00:12]}  Rd8 {[%clk 0:00:01]} 65. Rd2 {[%clk 0:00:12]}  Re8 {[%clk 0:00:01]} 66. Rd3 {[%clk 0:00:13]}  Rd8 {[%clk 0:00:02]} 67. Ne3 {[%clk 0:00:13]}  Re8 {[%clk 0:00:02]} 68. Rd7 {[%clk 0:00:13]}  Kh6 {[%clk 0:00:01]} 69. Rxf7 {[%clk 0:00:13]}  g5 {[%clk 0:00:01]} 70. Ng4+ {[%clk 0:00:13]}  Kg6 {[%clk 0:00:01]} 71. Rf6+ {[%clk 0:00:14]}  Kg7 {[%clk 0:00:02]} 72. h5 {[%clk 0:00:14]}  Rd8 {[%clk 0:00:01]} 73. h6+ {[%clk 0:00:15]}  Kh7 {[%clk 0:00:02]} 74. Rf7+ {[%clk 0:00:15]}  Kh8 {[%clk 0:00:02]} 75. Nf6 {[%clk 0:00:15]}  Rf5+ {[%clk 0:00:02]} 76. Kg4 {[%clk 0:00:14]}  Rxf6 {[%clk 0:00:01]} 77. Rxf6 {[%clk 0:00:14]}  Kh7 {[%clk 0:00:02]} 78. Rf7+ {[%clk 0:00:14]}  Kxh6 {[%clk 0:00:02]} 79. Ra7 {[%clk 0:00:15]}  Rd4+ {[%clk 0:00:02]} 80. Kf3 {[%clk 0:00:16]}  g4+ {[%clk 0:00:01]} 81. Ke3 {[%clk 0:00:16]}  Rd1 {[%clk 0:00:01]} 82. Rxa5 {[%clk 0:00:16]}  Ra1 {[%clk 0:00:01]} 83. Be2 {[%clk 0:00:16]} 1-0


[Site "https://www.chess.com"]

[Event "Titled Tuesday Blitz January 25 2022"]
[White "Pap, Gyula"]
[Black "Andreikin, Dmitry"]
[WhiteFideId "725323"]
[BlackFideId "4158814"]
[WhiteElo "2553"]
[BlackElo "2736"]
[Result "0-1"]
[Round "05"]
[TimeControl "180+1"]
[Date "2022.01.26"]
[WhiteClock "0:00:01"]
[BlackClock "0:00:58"]

1. e4 {[%clk 0:03:00]}  e5 {[%clk 0:02:57]} 2. Nf3 {[%clk 0:02:59]}  Nc6 {[%clk 0:02:57]} 3. Nc3 {[%clk 0:02:58]}  Nf6 {[%clk 0:02:57]} 4. d4 {[%clk 0:02:58]}  exd4 {[%clk 0:02:57]} 5. Nxd4 {[%clk 0:02:59]}  Bb4 {[%clk 0:02:57]} 6. Nxc6 {[%clk 0:02:59]}  bxc6 {[%clk 0:02:57]} 7. Bd3 {[%clk 0:02:59]}  O-O {[%clk 0:02:57]} 8. O-O {[%clk 0:02:55]}  d5 {[%clk 0:02:58]} 9. Bd2 {[%clk 0:02:50]}  Rb8 {[%clk 0:02:56]} 10. Re1 {[%clk 0:02:19]}  Bg4 {[%clk 0:02:55]} 11. Qc1 {[%clk 0:02:16]}  Bh5 {[%clk 0:02:55]} 12. a3 {[%clk 0:02:07]}  Bc5 {[%clk 0:02:55]} 13. Bg5 {[%clk 0:01:58]}  h6 {[%clk 0:02:39]} 14. Bh4 {[%clk 0:01:57]}  Be7 {[%clk 0:02:31]} 15. exd5 {[%clk 0:01:26]}  cxd5 {[%clk 0:02:32]} 16. Qe3 {[%clk 0:01:26]}  Re8 {[%clk 0:02:13]} 17. Qxa7 {[%clk 0:01:14]}  Rxb2 {[%clk 0:02:13]} 18. Bg3 {[%clk 0:00:54]}  Bd6 {[%clk 0:01:36]} 19. Bxd6 {[%clk 0:00:43]}  Qxd6 {[%clk 0:01:36]} 20. Rxe8+ {[%clk 0:00:35]}  Nxe8 {[%clk 0:01:37]} 21. Re1 {[%clk 0:00:29]}  Nf6 {[%clk 0:01:30]} 22. Na4 {[%clk 0:00:14]}  Ra2 {[%clk 0:01:27]} 23. Qb8+ {[%clk 0:00:08]}  Qf8 {[%clk 0:01:26]} 24. Qxc7 {[%clk 0:00:08]}  Rxa3 {[%clk 0:01:22]} 25. Nb6 {[%clk 0:00:07]}  Bg4 {[%clk 0:01:12]} 26. h3 {[%clk 0:00:04]}  Be6 {[%clk 0:01:12]} 27. Qe5 {[%clk 0:00:02]}  Qb4 {[%clk 0:01:09]} 28. Qb8+ {[%clk 0:00:01]}  Qf8 {[%clk 0:01:08]} 29. Qxf8+ {[%clk 0:00:01]}  Kxf8 {[%clk 0:01:09]} 30. Rb1 {[%clk 0:00:01]}  Ke7 {[%clk 0:01:07]} 31. f3 {[%clk 0:00:02]}  Kd6 {[%clk 0:01:07]} 32. Kf2 {[%clk 0:00:02]}  Kc5 {[%clk 0:01:07]} 33. Rb5+ {[%clk 0:00:01]}  Kc6 {[%clk 0:01:07]} 34. Rb4 {[%clk 0:00:01]}  Kc5 {[%clk 0:00:59]} 35. Rb5+ {[%clk 0:00:01]}  Kd4 {[%clk 0:00:58]} 0-1


[Site "https://www.chess.com"]

[Event "Titled Tuesday Blitz January 25 2022"]
[White "Parkhov, Yair"]
[Black "Maksimovic, Bojan"]
[WhiteFideId "2813408"]
[BlackFideId "14408120"]
[WhiteElo "2164"]
[BlackElo "2450"]
[Result "1-0"]
[Round "05"]
[TimeControl "180+1"]
[Date "2022.01.26"]
[WhiteClock "0:00:18"]
[BlackClock "0:00:02"]

1. e4 {[%clk 0:03:00]}  c5 {[%clk 0:03:00]} 2. Nf3 {[%clk 0:02:58]}  Nc6 {[%clk 0:03:00]} 3. Bb5 {[%clk 0:02:54]}  e6 {[%clk 0:03:01]} 4. O-O {[%clk 0:02:47]}  Nge7 {[%clk 0:03:01]} 5. Re1 {[%clk 0:02:45]}  a6 {[%clk 0:03:01]} 6. Bf1 {[%clk 0:02:45]}  d5 {[%clk 0:03:01]} 7. exd5 {[%clk 0:02:46]}  Nxd5 {[%clk 0:03:02]} 8. d4 {[%clk 0:02:46]}  Nf6 {[%clk 0:03:02]} 9. Be3 {[%clk 0:02:43]}  Be7 {[%clk 0:03:02]} 10. c4 {[%clk 0:02:41]}  O-O {[%clk 0:03:02]} 11. Nc3 {[%clk 0:02:40]}  cxd4 {[%clk 0:03:02]} 12. Nxd4 {[%clk 0:02:40]}  Ne5 {[%clk 0:03:03]} 13. h3 {[%clk 0:02:26]}  Bd7 {[%clk 0:03:02]} 14. Qe2 {[%clk 0:02:26]}  Ng6 {[%clk 0:03:00]} 15. Rad1 {[%clk 0:02:26]}  Qc7 {[%clk 0:03:00]} 16. a3 {[%clk 0:02:19]}  Rad8 {[%clk 0:02:25]} 17. b4 {[%clk 0:02:19]}  e5 {[%clk 0:02:15]} 18. Nb3 {[%clk 0:02:14]}  Be6 {[%clk 0:01:44]} 19. Nc5 {[%clk 0:02:09]}  Bc8 {[%clk 0:01:44]} 20. N5a4 {[%clk 0:02:06]}  Rxd1 {[%clk 0:01:39]} 21. Rxd1 {[%clk 0:02:07]}  Nf4 {[%clk 0:01:39]} 22. Bxf4 {[%clk 0:02:00]}  exf4 {[%clk 0:01:40]} 23. c5 {[%clk 0:02:00]}  Be6 {[%clk 0:01:21]} 24. Nb6 {[%clk 0:01:58]}  Rd8 {[%clk 0:01:19]} 25. Rxd8+ {[%clk 0:01:41]}  Qxd8 {[%clk 0:01:20]} 26. Qd3 {[%clk 0:01:40]}  Qc7 {[%clk 0:01:20]} 27. Ncd5 {[%clk 0:01:36]}  Nxd5 {[%clk 0:00:43]} 28. Nxd5 {[%clk 0:01:37]}  Qd8 {[%clk 0:00:42]} 29. Nxf4 {[%clk 0:01:32]}  Bd7 {[%clk 0:00:28]} 30. Nd5 {[%clk 0:01:29]}  Bg5 {[%clk 0:00:16]} 31. f4 {[%clk 0:01:24]}  Bh4 {[%clk 0:00:13]} 32. g3 {[%clk 0:01:24]}  Be7 {[%clk 0:00:12]} 33. Qe4 {[%clk 0:01:19]}  Bf8 {[%clk 0:00:11]} 34. Bc4 {[%clk 0:01:10]}  Bc6 {[%clk 0:00:10]} 35. Qf5 {[%clk 0:01:08]}  g6 {[%clk 0:00:08]} 36. Qe5 {[%clk 0:01:03]}  Bg7 {[%clk 0:00:06]} 37. Qe7 {[%clk 0:00:59]}  Qf8 {[%clk 0:00:02]} 38. Nf6+ {[%clk 0:00:56]}  Kh8 {[%clk 0:00:01]} 39. Nd5 {[%clk 0:00:33]}  Bxd5 {[%clk 0:00:01]} 40. Qxf8+ {[%clk 0:00:33]}  Bxf8 {[%clk 0:00:01]} 41. Bxd5 {[%clk 0:00:33]}  Bg7 {[%clk 0:00:02]} 42. Bxb7 {[%clk 0:00:33]}  a5 {[%clk 0:00:02]} 43. c6 {[%clk 0:00:32]}  Bd4+ {[%clk 0:00:02]} 44. Kg2 {[%clk 0:00:31]}  Bb6 {[%clk 0:00:02]} 45. bxa5 {[%clk 0:00:24]}  Bxa5 {[%clk 0:00:02]} 46. Kf3 {[%clk 0:00:24]}  Kg7 {[%clk 0:00:03]} 47. Ke4 {[%clk 0:00:25]}  Kf6 {[%clk 0:00:03]} 48. Kd5 {[%clk 0:00:26]}  Ke7 {[%clk 0:00:04]} 49. Ba6 {[%clk 0:00:24]}  Bc7 {[%clk 0:00:04]} 50. Bf1 {[%clk 0:00:24]}  f5 {[%clk 0:00:04]} 51. Bc4 {[%clk 0:00:23]}  h6 {[%clk 0:00:04]} 52. a4 {[%clk 0:00:23]}  g5 {[%clk 0:00:04]} 53. Bd3 {[%clk 0:00:21]}  gxf4 {[%clk 0:00:04]} 54. gxf4 {[%clk 0:00:22]}  Kf6 {[%clk 0:00:04]} 55. Kc5 {[%clk 0:00:22]}  Ke7 {[%clk 0:00:02]} 56. Bxf5 {[%clk 0:00:22]}  Bxf4 {[%clk 0:00:03]} 57. Kb6 {[%clk 0:00:21]}  Kd8 {[%clk 0:00:03]} 58. Kb7 {[%clk 0:00:22]}  Bc7 {[%clk 0:00:02]} 59. Bd7 {[%clk 0:00:22]}  Ba5 {[%clk 0:00:02]} 60. Ka6 {[%clk 0:00:22]}  Bd2 {[%clk 0:00:02]} 61. Kb6 {[%clk 0:00:22]}  Be3+ {[%clk 0:00:02]} 62. Kb7 {[%clk 0:00:19]}  Bd2 {[%clk 0:00:02]} 63. c7+ {[%clk 0:00:18]} 1-0


[Site "https://www.chess.com"]